[Event "Titled Tuesday Blitz January 17 Early 2023"]
[White "Estrada Nieto, Julian"]
[Black "Abdilkhair, Abilmansur"]
[WhiteFideId "5101018"]
[BlackFideId "13716417"]
[WhiteElo "2215"]
[BlackElo "2268"]
[Result "1-0"]
[Round "09"]
[TimeControl "180+2"]
[Date "2023.01.17"]
[WhiteClock "0:01:18"]
[BlackClock "0:01:54"]

1. e4 {[%clk 0:02:58]}  e5 {[%clk 0:02:59]} 2. Nf3 {[%clk 0:02:58]}  Nc6 {[%clk 0:02:58]} 3. Bb5 {[%clk 0:02:59]}  a6 {[%clk 0:02:58]} 4. Bxc6 {[%clk 0:02:59]}  dxc6 {[%clk 0:02:59]} 5. O-O {[%clk 0:03:00]}  Bd6 {[%clk 0:02:58]} 6. d4 {[%clk 0:02:59]}  exd4 {[%clk 0:02:58]} 7. Qxd4 {[%clk 0:03:00]}  f6 {[%clk 0:02:52]} 8. Nbd2 {[%clk 0:03:00]}  Ne7 {[%clk 0:02:51]} 9. Nc4 {[%clk 0:02:57]}  Bg4 {[%clk 0:02:46]} 10. e5 {[%clk 0:02:50]}  Bxf3 {[%clk 0:02:43]} 11. exd6 {[%clk 0:02:50]}  Bh5 {[%clk 0:02:16]} 12. Qh4 {[%clk 0:02:28]}  cxd6 {[%clk 0:01:59]} 13. Qxh5+ {[%clk 0:02:28]}  g6 {[%clk 0:01:59]} 14. Qe2 {[%clk 0:02:07]}  d5 {[%clk 0:02:00]} 15. Rd1 {[%clk 0:01:59]}  Kf7 {[%clk 0:01:59]} 16. Bf4 {[%clk 0:01:56]}  Nf5 {[%clk 0:01:58]} 17. g4 {[%clk 0:01:51]}  Re8 {[%clk 0:01:58]} 18. Qf3 {[%clk 0:01:41]}  Re4 {[%clk 0:01:57]} 19. Qxe4 {[%clk 0:01:31]}  dxe4 {[%clk 0:01:56]} 20. Rxd8 {[%clk 0:01:31]}  Rxd8 {[%clk 0:01:57]} 21. gxf5 {[%clk 0:01:30]}  gxf5 {[%clk 0:01:55]} 22. Kf1 {[%clk 0:01:24]}  Ke6 {[%clk 0:01:55]} 23. Ke2 {[%clk 0:01:21]}  b5 {[%clk 0:01:56]} 24. Ne3 {[%clk 0:01:20]}  Rg8 {[%clk 0:01:55]} 25. Rd1 {[%clk 0:01:19]}  a5 {[%clk 0:01:54]} 26. Rd6+ {[%clk 0:01:18]} 1-0


[Site "https://www.chess.com"]

[Event "Titled Tuesday Blitz January 17 Early 2023"]
[White "Degtiarev, Evgeny"]
[Black "Legenia, Artem"]
[WhiteFideId "4149610"]
[BlackFideId "14136945"]
[WhiteElo "2385"]
[BlackElo "2092"]
[Result "1-0"]
[Round "09"]
[TimeControl "180+2"]
[Date "2023.01.17"]
[WhiteClock "0:00:17"]
[BlackClock "0:00:36"]

1. d4 {[%clk 0:03:00]}  g6 {[%clk 0:02:49]} 2. c4 {[%clk 0:03:00]}  Bg7 {[%clk 0:02:49]} 3. Nc3 {[%clk 0:03:00]}  b6 {[%clk 0:02:49]} 4. e4 {[%clk 0:02:59]}  Bb7 {[%clk 0:02:46]} 5. Nf3 {[%clk 0:02:57]}  d6 {[%clk 0:02:46]} 6. h3 {[%clk 0:02:47]}  e6 {[%clk 0:02:46]} 7. Be3 {[%clk 0:02:43]}  h6 {[%clk 0:02:46]} 8. Bd3 {[%clk 0:02:37]}  Ne7 {[%clk 0:02:45]} 9. Qd2 {[%clk 0:02:29]}  a6 {[%clk 0:02:45]} 10. g4 {[%clk 0:02:22]}  Nd7 {[%clk 0:02:44]} 11. h4 {[%clk 0:02:18]}  c5 {[%clk 0:02:44]} 12. h5 {[%clk 0:02:11]}  cxd4 {[%clk 0:02:44]} 13. Bxd4 {[%clk 0:02:04]}  Bxd4 {[%clk 0:02:43]} 14. Nxd4 {[%clk 0:02:04]}  Ne5 {[%clk 0:02:43]} 15. Be2 {[%clk 0:02:00]}  g5 {[%clk 0:02:40]} 16. Nc2 {[%clk 0:01:43]}  Qc7 {[%clk 0:02:37]} 17. Ne3 {[%clk 0:01:40]}  O-O-O {[%clk 0:02:08]} 18. a4 {[%clk 0:01:37]}  Kb8 {[%clk 0:02:07]} 19. b4 {[%clk 0:01:34]}  N7c6 {[%clk 0:02:05]} 20. Rb1 {[%clk 0:01:20]}  a5 {[%clk 0:02:03]} 21. Nb5 {[%clk 0:01:02]}  Qe7 {[%clk 0:02:00]} 22. bxa5 {[%clk 0:00:52]}  bxa5 {[%clk 0:02:00]} 23. Nd4 {[%clk 0:00:35]}  Nb4 {[%clk 0:01:56]} 24. Nb3 {[%clk 0:00:31]}  Bxe4 {[%clk 0:01:55]} 25. Nxa5 {[%clk 0:00:29]}  Bxb1 {[%clk 0:01:47]} 26. Qxb4+ {[%clk 0:00:29]}  Kc8 {[%clk 0:01:46]} 27. Qxb1 {[%clk 0:00:29]}  Qc7 {[%clk 0:01:44]} 28. Qb5 {[%clk 0:00:26]}  Qb8 {[%clk 0:01:22]} 29. O-O {[%clk 0:00:23]}  Qxb5 {[%clk 0:01:21]} 30. cxb5 {[%clk 0:00:23]}  Kd7 {[%clk 0:01:21]} 31. Nb3 {[%clk 0:00:20]}  Rb8 {[%clk 0:01:13]} 32. a5 {[%clk 0:00:20]}  Rhc8 {[%clk 0:01:12]} 33. b6 {[%clk 0:00:19]}  d5 {[%clk 0:01:12]} 34. Bb5+ {[%clk 0:00:18]}  Ke7 {[%clk 0:01:11]} 35. Nd4 {[%clk 0:00:18]}  Rc3 {[%clk 0:01:06]} 36. Ra1 {[%clk 0:00:17]}  Kd6 {[%clk 0:01:03]} 37. a6 {[%clk 0:00:17]}  Rxb6 {[%clk 0:00:36]} 38. a7 {[%clk 0:00:17]} 1-0


[Site "https://www.chess.com"]

[Event "Titled Tuesday Blitz January 17 Early 2023"]
[White "Melikhov, Evgeny V."]
[Black "Lakshmi C"]
[WhiteFideId "4122046"]
[BlackFideId "25035347"]
[WhiteElo "2269"]
[BlackElo "1928"]
[Result "1-0"]
[Round "09"]
[TimeControl "180+2"]
[Date "2023.01.17"]
[WhiteClock "0:00:46"]
[BlackClock "0:00:06"]

1. d4 {[%clk 0:02:59]}  Nf6 {[%clk 0:02:56]} 2. c4 {[%clk 0:02:59]}  e6 {[%clk 0:02:56]} 3. Nc3 {[%clk 0:02:58]}  Bb4 {[%clk 0:02:55]} 4. Qc2 {[%clk 0:02:53]}  d5 {[%clk 0:02:51]} 5. cxd5 {[%clk 0:02:52]}  exd5 {[%clk 0:02:50]} 6. Bg5 {[%clk 0:02:50]}  O-O {[%clk 0:02:50]} 7. a3 {[%clk 0:02:47]}  Be7 {[%clk 0:02:49]} 8. e3 {[%clk 0:02:46]}  h6 {[%clk 0:02:39]} 9. Bh4 {[%clk 0:02:45]}  c6 {[%clk 0:02:33]} 10. Bd3 {[%clk 0:02:45]}  Re8 {[%clk 0:02:29]} 11. Nf3 {[%clk 0:02:40]}  Nbd7 {[%clk 0:02:29]} 12. O-O {[%clk 0:02:39]}  Nf8 {[%clk 0:02:25]} 13. h3 {[%clk 0:02:38]}  b6 {[%clk 0:01:52]} 14. Ne5 {[%clk 0:02:36]}  Bb7 {[%clk 0:01:52]} 15. f4 {[%clk 0:02:30]}  Rc8 {[%clk 0:01:51]} 16. Qf2 {[%clk 0:01:57]}  N6d7 {[%clk 0:01:41]} 17. Bxe7 {[%clk 0:01:51]}  Qxe7 {[%clk 0:01:39]} 18. Rae1 {[%clk 0:01:47]}  c5 {[%clk 0:01:27]} 19. g4 {[%clk 0:01:38]}  a6 {[%clk 0:01:11]} 20. Kh2 {[%clk 0:01:34]}  b5 {[%clk 0:01:10]} 21. Rg1 {[%clk 0:01:30]}  b4 {[%clk 0:00:55]} 22. axb4 {[%clk 0:01:23]}  cxb4 {[%clk 0:00:55]} 23. Na4 {[%clk 0:01:10]}  Qd6 {[%clk 0:00:37]} 24. Rc1 {[%clk 0:01:04]}  a5 {[%clk 0:00:13]} 25. Qd2 {[%clk 0:00:57]}  Red8 {[%clk 0:00:12]} 26. Rxc8 {[%clk 0:00:53]}  Rxc8 {[%clk 0:00:12]} 27. Rc1 {[%clk 0:00:54]}  f6 {[%clk 0:00:08]} 28. Ng6 {[%clk 0:00:47]}  Rxc1 {[%clk 0:00:07]} 29. Qxc1 {[%clk 0:00:46]}  Qc6 {[%clk 0:00:07]} 30. Qxc6 {[%clk 0:00:45]}  Bxc6 {[%clk 0:00:07]} 31. Ne7+ {[%clk 0:00:45]}  Kf7 {[%clk 0:00:06]} 32. Nxc6 {[%clk 0:00:46]} 1-0


[Site "https://www.chess.com"]

[Event "Titled Tuesday Blitz January 17 Early 2023"]
[White "Kostenko, Petr"]
[Black "Broca Jimenez, Fernando"]
[WhiteFideId "13700669"]
[BlackFideId "5104742"]
[WhiteElo "2371"]
[BlackElo "2075"]
[Result "1-0"]
[Round "09"]
[TimeControl "180+2"]
[Date "2023.01.17"]
[WhiteClock "0:00:20"]
[BlackClock "0:00:03"]

1. c4 {[%clk 0:03:00]}  Nf6 {[%clk 0:02:58]} 2. g3 {[%clk 0:03:01]}  g6 {[%clk 0:02:54]} 3. Bg2 {[%clk 0:03:01]}  Bg7 {[%clk 0:02:55]} 4. Nc3 {[%clk 0:03:01]}  d6 {[%clk 0:02:56]} 5. e4 {[%clk 0:03:01]}  O-O {[%clk 0:02:57]} 6. Nge2 {[%clk 0:03:01]}  Nbd7 {[%clk 0:02:57]} 7. d3 {[%clk 0:02:59]}  e5 {[%clk 0:02:57]} 8. O-O {[%clk 0:02:58]}  a5 {[%clk 0:02:45]} 9. f4 {[%clk 0:02:51]}  exf4 {[%clk 0:02:42]} 10. gxf4 {[%clk 0:02:50]}  Re8 {[%clk 0:02:33]} 11. Kh1 {[%clk 0:02:49]}  Nc5 {[%clk 0:02:30]} 12. Be3 {[%clk 0:02:40]}  Bg4 {[%clk 0:02:30]} 13. Qd2 {[%clk 0:02:35]}  h5 {[%clk 0:02:09]} 14. Rae1 {[%clk 0:02:25]}  Bxe2 {[%clk 0:02:05]} 15. Rxe2 {[%clk 0:02:17]}  Ng4 {[%clk 0:02:05]} 16. Bg1 {[%clk 0:02:16]}  Ne6 {[%clk 0:01:54]} 17. d4 {[%clk 0:01:36]}  Qh4 {[%clk 0:01:40]} 18. h3 {[%clk 0:00:54]}  Rad8 {[%clk 0:01:25]} 19. f5 {[%clk 0:00:48]}  Ng5 {[%clk 0:01:22]} 20. Qd3 {[%clk 0:00:44]}  Nh7 {[%clk 0:00:32]} 21. Nd5 {[%clk 0:00:38]}  c6 {[%clk 0:00:28]} 22. fxg6 {[%clk 0:00:33]}  fxg6 {[%clk 0:00:21]} 23. Nf4 {[%clk 0:00:33]}  Nf8 {[%clk 0:00:20]} 24. e5 {[%clk 0:00:27]}  dxe5 {[%clk 0:00:19]} 25. Nxg6 {[%clk 0:00:27]}  Nxg6 {[%clk 0:00:11]} 26. Qxg6 {[%clk 0:00:26]}  Rf8 {[%clk 0:00:06]} 27. Rxf8+ {[%clk 0:00:26]}  Rxf8 {[%clk 0:00:07]} 28. dxe5 {[%clk 0:00:24]}  Nh6 {[%clk 0:00:05]} 29. e6 {[%clk 0:00:22]}  Rf6 {[%clk 0:00:03]} 30. Qe4 {[%clk 0:00:20]}  Rf8 {[%clk 0:00:03]} 31. Qxh4 {[%clk 0:00:20]} 1-0


[Site "https://www.chess.com"]

[Event "Titled Tuesday Blitz January 17 Early 2023"]
[White "MitzyCaballero"]
[Black "Garmash, Aliona"]
[BlackFideId "34127620"]
[WhiteElo "2235"]
[BlackElo "2039"]
[Result "1-0"]
[Round "09"]
[TimeControl "180+2"]
[Date "2023.01.17"]
[WhiteClock "0:00:17"]
[BlackClock "0:00:01"]

1. d4 {[%clk 0:02:57]}  d5 {[%clk 0:02:59]} 2. Nf3 {[%clk 0:02:56]}  Nf6 {[%clk 0:02:58]} 3. c4 {[%clk 0:02:55]}  c6 {[%clk 0:02:57]} 4. e3 {[%clk 0:02:53]}  Bf5 {[%clk 0:02:56]} 5. Nc3 {[%clk 0:02:51]}  e6 {[%clk 0:02:56]} 6. Qb3 {[%clk 0:02:44]}  Qc7 {[%clk 0:02:48]} 7. h3 {[%clk 0:02:39]}  h6 {[%clk 0:02:45]} 8. Bd2 {[%clk 0:02:34]}  Nbd7 {[%clk 0:02:43]} 9. Rc1 {[%clk 0:02:34]}  dxc4 {[%clk 0:02:09]} 10. Bxc4 {[%clk 0:02:33]}  Be7 {[%clk 0:01:56]} 11. O-O {[%clk 0:02:33]}  O-O {[%clk 0:01:55]} 12. Rfe1 {[%clk 0:02:34]}  Ne4 {[%clk 0:01:16]} 13. Nxe4 {[%clk 0:02:21]}  Bxe4 {[%clk 0:01:15]} 14. Bb4 {[%clk 0:01:41]}  Bxb4 {[%clk 0:01:08]} 15. Qxb4 {[%clk 0:01:41]}  Bxf3 {[%clk 0:01:07]} 16. gxf3 {[%clk 0:01:41]}  e5 {[%clk 0:00:44]} 17. Be2 {[%clk 0:01:28]}  a5 {[%clk 0:00:27]} 18. Qc3 {[%clk 0:01:24]}  exd4 {[%clk 0:00:22]} 19. Qxd4 {[%clk 0:01:24]}  Rad8 {[%clk 0:00:20]} 20. Qh4 {[%clk 0:01:24]}  Nf6 {[%clk 0:00:19]} 21. f4 {[%clk 0:01:23]}  Qe7 {[%clk 0:00:18]} 22. Bf3 {[%clk 0:01:23]}  Qe6 {[%clk 0:00:17]} 23. Kh2 {[%clk 0:01:21]}  Kh8 {[%clk 0:00:16]} 24. b3 {[%clk 0:01:20]}  Rd2 {[%clk 0:00:16]} 25. Re2 {[%clk 0:01:20]}  Rfd8 {[%clk 0:00:15]} 26. Rce1 {[%clk 0:01:19]}  Rxe2 {[%clk 0:00:14]} 27. Rxe2 {[%clk 0:01:19]}  Rd1 {[%clk 0:00:14]} 28. Rc2 {[%clk 0:01:12]}  Re1 {[%clk 0:00:11]} 29. Bg2 {[%clk 0:01:07]}  Qd7 {[%clk 0:00:11]} 30. f5 {[%clk 0:00:39]}  Qxf5 {[%clk 0:00:07]} 31. Qc4 {[%clk 0:00:39]}  Ra1 {[%clk 0:00:05]} 32. Rd2 {[%clk 0:00:35]}  Qe5+ {[%clk 0:00:04]} 33. Qf4 {[%clk 0:00:35]}  Qxf4+ {[%clk 0:00:03]} 34. exf4 {[%clk 0:00:36]}  Kh7 {[%clk 0:00:02]} 35. a4 {[%clk 0:00:36]}  Rb1 {[%clk 0:00:01]} 36. Rd3 {[%clk 0:00:36]}  Rb2 {[%clk 0:00:01]} 37. Kg3 {[%clk 0:00:34]}  g6 {[%clk 0:00:01]} 38. Bf3 {[%clk 0:00:32]}  Kg7 {[%clk 0:00:02]} 39. h4 {[%clk 0:00:30]}  b5 {[%clk 0:00:02]} 40. Bxc6 {[%clk 0:00:28]}  bxa4 {[%clk 0:00:02]} 41. Bxa4 {[%clk 0:00:29]}  Nh5+ {[%clk 0:00:01]} 42. Kf3 {[%clk 0:00:28]}  Kf6 {[%clk 0:00:02]} 43. Bd7 {[%clk 0:00:26]}  Ke7 {[%clk 0:00:01]} 44. Bc6 {[%clk 0:00:23]}  Nf6 {[%clk 0:00:01]} 45. Bb5 {[%clk 0:00:17]}  h5 {[%clk 0:00:01]} 46. Bc4 {[%clk 0:00:17]} 1-0


[Site "https://www.chess.com"]

[Event "Titled Tuesday Blitz January 17 Early 2023"]
[White "Manon-og, Ramon Jr."]
[Black "Thiel, Thomas"]
[WhiteFideId "5200776"]
[BlackFideId "4615964"]
[WhiteElo "1999"]
[BlackElo "2234"]
[Result "1/2-1/2"]
[Round "09"]
[TimeControl "180+2"]
[Date "2023.01.17"]
[WhiteClock "0:00:08"]
[BlackClock "0:00:18"]

1. e4 {[%clk 0:02:35]}  d5 {[%clk 0:02:58]} 2. exd5 {[%clk 0:02:35]}  Nf6 {[%clk 0:02:58]} 3. Nf3 {[%clk 0:02:34]}  Nxd5 {[%clk 0:02:58]} 4. d4 {[%clk 0:02:34]}  g6 {[%clk 0:02:58]} 5. c4 {[%clk 0:02:34]}  Nb6 {[%clk 0:02:57]} 6. c5 {[%clk 0:02:35]}  Nd5 {[%clk 0:02:55]} 7. Nc3 {[%clk 0:02:33]}  Bg7 {[%clk 0:02:54]} 8. Qb3 {[%clk 0:02:32]}  Nxc3 {[%clk 0:02:52]} 9. bxc3 {[%clk 0:02:33]}  O-O {[%clk 0:02:49]} 10. Bc4 {[%clk 0:02:33]}  Nc6 {[%clk 0:02:47]} 11. Be2 {[%clk 0:02:22]}  e5 {[%clk 0:02:37]} 12. d5 {[%clk 0:02:21]}  Na5 {[%clk 0:02:33]} 13. Qb5 {[%clk 0:02:14]}  c6 {[%clk 0:02:30]} 14. dxc6 {[%clk 0:02:13]}  bxc6 {[%clk 0:02:29]} 15. Qb4 {[%clk 0:02:10]}  Be6 {[%clk 0:02:24]} 16. Bg5 {[%clk 0:02:06]}  f6 {[%clk 0:02:24]} 17. Be3 {[%clk 0:02:05]}  Rb8 {[%clk 0:02:21]} 18. Qa3 {[%clk 0:02:05]}  Qc7 {[%clk 0:02:16]} 19. O-O {[%clk 0:02:04]}  Bc4 {[%clk 0:02:08]} 20. Bxc4+ {[%clk 0:01:54]}  Nxc4 {[%clk 0:02:09]} 21. Qc1 {[%clk 0:01:55]}  Rfd8 {[%clk 0:01:59]} 22. Bh6 {[%clk 0:01:53]}  Bh8 {[%clk 0:01:56]} 23. Rd1 {[%clk 0:01:52]}  Qe7 {[%clk 0:01:48]} 24. Rb1 {[%clk 0:01:38]}  Qxc5 {[%clk 0:01:47]} 25. Rxd8+ {[%clk 0:01:34]}  Rxd8 {[%clk 0:01:44]} 26. Rb7 {[%clk 0:01:35]}  Nd6 {[%clk 0:01:40]} 27. Rc7 {[%clk 0:01:31]}  Nf5 {[%clk 0:01:27]} 28. g4 {[%clk 0:01:17]}  Qd6 {[%clk 0:01:10]} 29. Rxa7 {[%clk 0:01:01]}  e4 {[%clk 0:01:05]} 30. Nd4 {[%clk 0:00:40]}  Nxd4 {[%clk 0:01:02]} 31. cxd4 {[%clk 0:00:41]}  Qxd4 {[%clk 0:00:58]} 32. Qxc6 {[%clk 0:00:38]}  Qxa7 {[%clk 0:00:53]} 33. Qe6+ {[%clk 0:00:34]}  Qf7 {[%clk 0:00:51]} 34. Qxe4 {[%clk 0:00:35]}  Qxa2 {[%clk 0:00:49]} 35. Qe7 {[%clk 0:00:33]}  Ra8 {[%clk 0:00:42]} 36. Be3 {[%clk 0:00:24]}  Qf7 {[%clk 0:00:40]} 37. Qe4 {[%clk 0:00:23]}  Qd7 {[%clk 0:00:39]} 38. Qxa8+ {[%clk 0:00:22]}  Kg7 {[%clk 0:00:39]} 39. h3 {[%clk 0:00:18]}  h5 {[%clk 0:00:34]} 40. g5 {[%clk 0:00:16]}  fxg5 {[%clk 0:00:33]} 41. Bxg5 {[%clk 0:00:12]}  Kh7 {[%clk 0:00:33]} 42. h4 {[%clk 0:00:11]}  Qg4+ {[%clk 0:00:27]} 43. Qg2 {[%clk 0:00:10]}  Qxg2+ {[%clk 0:00:24]} 44. Kxg2 {[%clk 0:00:11]}  Kg7 {[%clk 0:00:23]} 45. Kf3 {[%clk 0:00:10]}  Kf7 {[%clk 0:00:23]} 46. Ke4 {[%clk 0:00:10]}  Ke6 {[%clk 0:00:23]} 47. f4 {[%clk 0:00:10]}  Bc3 {[%clk 0:00:21]} 48. Bd8 {[%clk 0:00:08]}  Bb4 {[%clk 0:00:21]} 49. Bg5 {[%clk 0:00:08]}  Bc3 {[%clk 0:00:18]} 50. Bd8 {[%clk 0:00:08]}  Bb4 {[%clk 0:00:18]} 51. Bg5 {[%clk 0:00:08]}  Bc3 {[%clk 0:00:18]} 1/2-1/2


[Site "https://www.chess.com"]

[Event "Titled Tuesday Blitz January 17 Early 2023"]
[White "Sovetbekova, Nurai"]
[Black "Clawitter, Craig"]
[WhiteFideId "13801910"]
[BlackFideId "2023105"]
[WhiteElo "1764"]
[BlackElo "2050"]
[Result "0-1"]
[Round "09"]
[TimeControl "180+2"]
[Date "2023.01.17"]
[WhiteClock "0:01:08"]
[BlackClock "0:00:28"]

1. d4 {[%clk 0:03:00]}  e6 {[%clk 0:02:54]} 2. c4 {[%clk 0:03:00]}  Nf6 {[%clk 0:02:54]} 3. g3 {[%clk 0:03:00]}  d5 {[%clk 0:02:54]} 4. Bg2 {[%clk 0:02:59]}  Be7 {[%clk 0:02:55]} 5. Nf3 {[%clk 0:02:59]}  O-O {[%clk 0:02:55]} 6. O-O {[%clk 0:02:59]}  dxc4 {[%clk 0:02:56]} 7. Ne5 {[%clk 0:02:57]}  Nc6 {[%clk 0:02:55]} 8. Nxc6 {[%clk 0:02:53]}  bxc6 {[%clk 0:02:56]} 9. Na3 {[%clk 0:02:47]}  Bxa3 {[%clk 0:02:46]} 10. bxa3 {[%clk 0:02:48]}  Rb8 {[%clk 0:02:33]} 11. Qa4 {[%clk 0:02:44]}  Qxd4 {[%clk 0:01:51]} 12. Be3 {[%clk 0:02:43]}  Qe5 {[%clk 0:01:37]} 13. Qxc4 {[%clk 0:02:39]}  Qa5 {[%clk 0:01:08]} 14. Bc5 {[%clk 0:02:21]}  Ba6 {[%clk 0:01:06]} 15. Qc2 {[%clk 0:02:13]}  Rfd8 {[%clk 0:01:01]} 16. Be7 {[%clk 0:02:04]}  Rd2 {[%clk 0:00:59]} 17. Qxc6 {[%clk 0:01:45]}  Bb7 {[%clk 0:00:48]} 18. Qc4 {[%clk 0:01:30]}  Bxg2 {[%clk 0:00:44]} 19. Kxg2 {[%clk 0:01:29]}  Qd5+ {[%clk 0:00:44]} 20. Qxd5 {[%clk 0:01:28]}  Nxd5 {[%clk 0:00:45]} 21. Bc5 {[%clk 0:01:20]}  Rxe2 {[%clk 0:00:41]} 22. Kf3 {[%clk 0:01:19]}  Rbb2 {[%clk 0:00:35]} 23. Bxa7 {[%clk 0:01:12]}  Rxa2 {[%clk 0:00:36]} 24. Rxa2 {[%clk 0:01:09]}  Rxa2 {[%clk 0:00:36]} 25. Rb1 {[%clk 0:01:09]}  Rxa3+ {[%clk 0:00:36]} 26. Kg2 {[%clk 0:01:09]}  h5 {[%clk 0:00:29]} 27. Rb8+ {[%clk 0:01:08]}  Kh7 {[%clk 0:00:29]} 28. Rc8 {[%clk 0:01:08]}  Rxa7 {[%clk 0:00:28]} 0-1


[Site "https://www.chess.com"]

[Event "Titled Tuesday Blitz January 17 Early 2023"]
[White "Kuchava, Ana"]
[Black "Zampronha, Wladimir Camilo"]
[WhiteFideId "13605348"]
[BlackFideId "2103087"]
[WhiteElo "2101"]
[BlackElo "2176"]
[Result "0-1"]
[Round "09"]
[TimeControl "180+2"]
[Date "2023.01.17"]
[WhiteClock "0:00:13"]
[BlackClock "0:01:53"]

1. d4 {[%clk 0:02:56]}  Nf6 {[%clk 0:02:59]} 2. Nf3 {[%clk 0:02:55]}  e6 {[%clk 0:02:59]} 3. c4 {[%clk 0:02:48]}  d5 {[%clk 0:03:00]} 4. Nc3 {[%clk 0:02:48]}  Bb4 {[%clk 0:03:00]} 5. Qa4+ {[%clk 0:02:30]}  Nc6 {[%clk 0:02:59]} 6. e3 {[%clk 0:02:16]}  O-O {[%clk 0:02:57]} 7. Bd3 {[%clk 0:02:09]}  Bd7 {[%clk 0:02:56]} 8. Qc2 {[%clk 0:02:06]}  Be7 {[%clk 0:02:52]} 9. O-O {[%clk 0:01:59]}  Nb4 {[%clk 0:02:52]} 10. Qd1 {[%clk 0:01:58]}  Nxd3 {[%clk 0:02:51]} 11. Qxd3 {[%clk 0:01:59]}  dxc4 {[%clk 0:02:51]} 12. Qxc4 {[%clk 0:01:58]}  a6 {[%clk 0:02:48]} 13. a4 {[%clk 0:01:58]}  Rc8 {[%clk 0:02:44]} 14. e4 {[%clk 0:01:56]}  c5 {[%clk 0:02:43]} 15. d5 {[%clk 0:01:53]}  b5 {[%clk 0:02:41]} 16. axb5 {[%clk 0:01:52]}  axb5 {[%clk 0:02:41]} 17. Nxb5 {[%clk 0:01:48]}  Bxb5 {[%clk 0:02:41]} 18. Qxb5 {[%clk 0:01:48]}  exd5 {[%clk 0:02:39]} 19. exd5 {[%clk 0:01:49]}  Qxd5 {[%clk 0:02:36]} 20. h3 {[%clk 0:01:37]}  Rb8 {[%clk 0:02:34]} 21. Qa4 {[%clk 0:01:27]}  Ra8 {[%clk 0:02:17]} 22. Qxa8 {[%clk 0:00:21]}  Rxa8 {[%clk 0:02:14]} 23. Rxa8+ {[%clk 0:00:22]}  Qxa8 {[%clk 0:02:12]} 24. Be3 {[%clk 0:00:23]}  h6 {[%clk 0:02:11]} 25. Rc1 {[%clk 0:00:21]}  Qb7 {[%clk 0:02:08]} 26. Bxc5 {[%clk 0:00:20]}  Qxb2 {[%clk 0:02:05]} 27. Rc4 {[%clk 0:00:17]}  Qb1+ {[%clk 0:01:59]} 28. Kh2 {[%clk 0:00:16]}  Qb8+ {[%clk 0:02:00]} 29. g3 {[%clk 0:00:15]}  Qb5 {[%clk 0:01:54]} 30. Rc3 {[%clk 0:00:13]}  Bxc5 {[%clk 0:01:53]} 0-1


[Site "https://www.chess.com"]

[Event "Titled Tuesday Blitz January 17 Early 2023"]
[White "Jimenez Fernandez, Rebeca"]
[Black "Orujov, Elshad"]
[WhiteFideId "32070934"]
[BlackFideId "13403540"]
[WhiteElo "2069"]
[BlackElo "2304"]
[Result "0-1"]
[Round "09"]
[TimeControl "180+2"]
[Date "2023.01.17"]
[WhiteClock "0:00:05"]
[BlackClock "0:00:37"]

1. e4 {[%clk 0:02:58]}  c5 {[%clk 0:02:59]} 2. Nc3 {[%clk 0:02:57]}  d6 {[%clk 0:03:00]} 3. g3 {[%clk 0:02:58]}  g6 {[%clk 0:02:59]} 4. Bg2 {[%clk 0:02:59]}  Bg7 {[%clk 0:02:59]} 5. d3 {[%clk 0:02:59]}  Nc6 {[%clk 0:03:00]} 6. Be3 {[%clk 0:03:00]}  e6 {[%clk 0:03:00]} 7. Qd2 {[%clk 0:03:00]}  Nge7 {[%clk 0:03:01]} 8. Bh6 {[%clk 0:02:59]}  Bxh6 {[%clk 0:02:58]} 9. Qxh6 {[%clk 0:02:58]}  Nd4 {[%clk 0:02:58]} 10. Qd2 {[%clk 0:02:58]}  Nec6 {[%clk 0:02:58]} 11. h4 {[%clk 0:02:58]}  h5 {[%clk 0:02:57]} 12. O-O-O {[%clk 0:02:52]}  Nb4 {[%clk 0:02:55]} 13. Nf3 {[%clk 0:02:44]}  Nbxc2 {[%clk 0:02:52]} 14. Nxd4 {[%clk 0:02:24]}  Nxd4 {[%clk 0:02:53]} 15. f4 {[%clk 0:02:24]}  Bd7 {[%clk 0:02:48]} 16. Rde1 {[%clk 0:02:20]}  Bc6 {[%clk 0:02:48]} 17. f5 {[%clk 0:02:20]}  Qd7 {[%clk 0:02:41]} 18. fxg6 {[%clk 0:02:10]}  fxg6 {[%clk 0:02:42]} 19. e5 {[%clk 0:02:06]}  Bxg2 {[%clk 0:02:38]} 20. Qxg2 {[%clk 0:02:07]}  O-O-O {[%clk 0:02:38]} 21. exd6 {[%clk 0:02:07]}  Qxd6 {[%clk 0:02:39]} 22. Ne4 {[%clk 0:02:00]}  Qc6 {[%clk 0:02:31]} 23. Kb1 {[%clk 0:01:59]}  Kb8 {[%clk 0:02:28]} 24. Rc1 {[%clk 0:01:58]}  b6 {[%clk 0:02:25]} 25. Qd2 {[%clk 0:01:46]}  Nf5 {[%clk 0:02:22]} 26. Ng5 {[%clk 0:01:35]}  Rd7 {[%clk 0:02:12]} 27. Rhe1 {[%clk 0:01:34]}  Nd4 {[%clk 0:02:12]} 28. Qc3 {[%clk 0:01:24]}  Rhd8 {[%clk 0:02:08]} 29. Re3 {[%clk 0:01:13]}  Qc7 {[%clk 0:01:42]} 30. Rxe6 {[%clk 0:00:57]}  Nxe6 {[%clk 0:01:32]} 31. Nxe6 {[%clk 0:00:57]}  Qxg3 {[%clk 0:01:32]} 32. Nxd8 {[%clk 0:00:57]}  Rxd8 {[%clk 0:01:33]} 33. Qf6 {[%clk 0:00:50]}  Qxd3+ {[%clk 0:01:30]} 34. Ka1 {[%clk 0:00:50]}  Qd6 {[%clk 0:01:29]} 35. Qf3 {[%clk 0:00:46]}  Rf8 {[%clk 0:01:28]} 36. Qg2 {[%clk 0:00:44]}  Qf4 {[%clk 0:01:20]} 37. Rd1 {[%clk 0:00:40]}  Qxh4 {[%clk 0:01:06]} 38. Qxg6 {[%clk 0:00:38]}  Rd8 {[%clk 0:00:52]} 39. Rf1 {[%clk 0:00:13]}  Qg4 {[%clk 0:00:49]} 40. Qc2 {[%clk 0:00:12]}  h4 {[%clk 0:00:47]} 41. a3 {[%clk 0:00:10]}  h3 {[%clk 0:00:47]} 42. Qh2+ {[%clk 0:00:08]}  Ka8 {[%clk 0:00:40]} 43. Rf7 {[%clk 0:00:08]}  Qd1+ {[%clk 0:00:39]} 44. Ka2 {[%clk 0:00:08]}  Qd5+ {[%clk 0:00:40]} 45. b3 {[%clk 0:00:06]}  Qxf7 {[%clk 0:00:40]} 46. Qxh3 {[%clk 0:00:06]}  Rd2+ {[%clk 0:00:38]} 47. Kb1 {[%clk 0:00:07]}  Qg6+ {[%clk 0:00:38]} 48. Ka1 {[%clk 0:00:05]}  Qg1+ {[%clk 0:00:37]} 0-1


[Site "https://www.chess.com"]

[Event "Titled Tuesday Blitz January 17 Early 2023"]
[White "Ho, In Hei Henry"]
[Black "Dilmukhametov, Artur"]
[WhiteFideId "6002552"]
[BlackFideId "24179922"]
[WhiteElo "1735"]
[BlackElo "2276"]
[Result "1-0"]
[Round "09"]
[TimeControl "180+2"]
[Date "2023.01.17"]
[WhiteClock "0:01:56"]
[BlackClock "0:02:08"]

1. e4 {[%clk 0:03:00]}  e6 {[%clk 0:02:56]} 2. d4 {[%clk 0:03:00]}  d5 {[%clk 0:02:55]} 3. e5 {[%clk 0:03:00]}  c5 {[%clk 0:02:54]} 4. c3 {[%clk 0:03:00]}  Qb6 {[%clk 0:02:53]} 5. Nf3 {[%clk 0:02:57]}  Nc6 {[%clk 0:02:53]} 6. a3 {[%clk 0:02:56]}  cxd4 {[%clk 0:02:49]} 7. cxd4 {[%clk 0:02:56]}  Nh6 {[%clk 0:02:46]} 8. Bd3 {[%clk 0:02:43]}  Nf5 {[%clk 0:02:44]} 9. Bxf5 {[%clk 0:02:41]}  exf5 {[%clk 0:02:44]} 10. O-O {[%clk 0:02:41]}  Be6 {[%clk 0:02:43]} 11. b4 {[%clk 0:02:40]}  Be7 {[%clk 0:02:40]} 12. Nc3 {[%clk 0:02:38]}  O-O {[%clk 0:02:37]} 13. Ne2 {[%clk 0:02:35]}  f6 {[%clk 0:02:34]} 14. Nf4 {[%clk 0:02:33]}  Nd8 {[%clk 0:02:29]} 15. Re1 {[%clk 0:02:23]}  fxe5 {[%clk 0:02:25]} 16. Rxe5 {[%clk 0:02:11]}  Qd6 {[%clk 0:02:14]} 17. Qe2 {[%clk 0:02:02]}  a6 {[%clk 0:02:12]} 18. Nxe6 {[%clk 0:02:00]}  Nxe6 {[%clk 0:02:11]} 19. Rxe6 {[%clk 0:01:59]}  Qc7 {[%clk 0:02:08]} 20. Rxe7 {[%clk 0:01:56]} 1-0


[Site "https://www.chess.com"]